fUSD/lending_fUSD_20250103
["ID","MTS","AMOUNT","RATE_DAILY","PERIOD"]
[347547186,1735912247738,-500.0,9.579e-05,2]
[347547187,1735912247748,-500.0,9.579e-05,2]
[347547188,1735912247757,-500.0,9.579e-05,2]
[347547189,1735912247766,-732.45,9.579e-05,2]
[347547190,1735912247776,-531.14,9.579e-05,2]
[347547191,1735912247785,-500.0,9.579e-05,2]
[347547192,1735912247794,-1857.09,9.579e-05,2]
[347547193,1735912247804,-500.37548615,9.579e-05,2]
[347547194,1735912247814,-500.0,9.579e-05,2]
[347547195,1735912247823,-500.0,9.579e-05,2]
[347547196,1735912247833,-500.0,9.579e-05,2]
[347547197,1735912247843,-500.0,9.579e-05,2]
[347547198,1735912247852,-777.04,9.579e-05,2]
[347547199,1735912247862,-500.0,9.579e-05,2]
[347547200,1735912247874,-597.66,9.579e-05,2]
[347547201,1735912247884,-500.0,9.579e-05,2]
[347547202,1735912247893,-500.0,9.579e-05,2]
[347547203,1735912247903,-500.0,9.579e-05,2]
[347547204,1735912247912,-500.0,9.579e-05,2]
[347547205,1735912247923,-500.0,9.579e-05,2]
[347547206,1735912247933,-500.0,9.579e-05,2]
[347547207,1735912247943,-500.0,9.579e-05,2]
[347547208,1735912247952,-500.0,9.579e-05,2]
[347547209,1735912247961,-500.0,9.579e-05,2]
[347547210,1735912247970,-1200.44,9.579e-05,2]
[347547211,1735912247979,-2467.772837,9.579e-05,2]
[347547212,1735912247988,-1693.99,9.579e-05,2]
[347547213,1735912247998,-500.0,9.579e-05,2]
[347547214,1735912248008,-980.72,9.579e-05,2]
[347547215,1735912248018,-3519.31,9.579e-05,2]
[347547216,1735912248027,-500.36122835,9.579e-05,2]
[347547217,1735912248036,-815.73,9.579e-05,2]
[347547218,1735912248046,-500.0,9.579e-05,2]
[347547219,1735912248056,-2355.916444,9.579e-05,2]
[347547220,1735912248066,-593.8,9.579e-05,2]
[347547221,1735912248075,-500.0,9.579e-05,2]
[347547222,1735912248085,-1626.08,9.579e-05,2]
[347547223,1735912248095,-1626.08,9.579e-05,2]
[347547224,1735912248107,-500.0,9.579e-05,2]
[347547225,1735912248117,-153.754164,9.579e-05,2]
[347547226,1735912248126,-500.0,9.579e-05,2]
[347547227,1735912248136,-500.0,9.579e-05,2]
[347547228,1735912248145,-155.826196,9.579e-05,2]
[347547229,1735912248154,-500.0,9.579e-05,2]
[347547230,1735912248165,-500.0,9.579e-05,2]
[347547231,1735912248178,-500.0,9.579e-05,2]
[347547232,1735912248188,-720.42,9.579e-05,2]
[347547233,1735912248197,-500.0,9.579e-05,2]
[347547234,1735912248206,-500.0,9.579e-05,2]
[347547235,1735912248216,-500.0,9.579e-05,2]
[347547236,1735912248226,-500.0,9.579e-05,2]
[347547237,1735912248237,-500.0,9.579e-05,2]
[347547238,1735912248247,-643.33,9.579e-05,2]
[347547239,1735912248257,-500.0,9.579e-05,2]
[347547240,1735912248268,-369.89529221,9.579e-05,2]
[347547241,1735912248278,-861.45,9.579e-05,2]
[347547242,1735912248288,-500.0,9.579e-05,2]
[347547243,1735912248298,-788.1,9.579e-05,2]
[347547244,1735912248310,-667.53,9.579e-05,2]
[347547245,1735912248320,-500.0,9.579e-05,2]
[347547246,1735912248329,-500.0,9.579e-05,2]
[347547247,1735912248339,-500.65088403,9.579e-05,2]
[347547248,1735912248348,-1264.74,9.579e-05,2]
[347547249,1735912248357,-590.73,9.579e-05,2]
[347547250,1735912248367,-198.64269522,9.579e-05,2]
[347547251,1735912248377,-684.57,9.579e-05,2]
[347547252,1735912248387,-500.0,9.579e-05,2]
[347547253,1735912248397,-500.0,9.579e-05,2]
[347547254,1735912248407,-500.0,9.579e-05,2]
[347547255,1735912248419,-1059.35,9.579e-05,2]
[347547256,1735912248429,-500.41563858,9.579e-05,2]
[347547257,1735912248439,-500.0,9.579e-05,2]
[347547258,1735912248448,-948.96,9.579e-05,2]
[347547259,1735912248459,-500.0,9.579e-05,2]
[347547260,1735912248469,-500.0,9.579e-05,2]
[347547261,1735912248479,-500.0,9.579e-05,2]
[347547262,1735912248489,-500.0,9.579e-05,2]
[347547263,1735912248500,-500.0,9.579e-05,2]
[347547264,1735912248510,-3548.16,9.579e-05,2]
[347547265,1735912248520,-500.0,9.579e-05,2]
[347547266,1735912248530,-1072.31,9.579e-05,2]
[347547267,1735912248540,-4511.17,9.579e-05,2]
[347547268,1735912248550,-500.0,9.579e-05,2]
[347547269,1735912248560,-500.0,9.579e-05,2]
[347547270,1735912248570,-777.8,9.579e-05,2]
[347547271,1735912248580,-500.0,9.579e-05,2]
[347547272,1735912248590,-500.59535112,9.579e-05,2]
[347547273,1735912248600,-500.0,9.579e-05,2]
[347547274,1735912248610,-2600.97,9.579e-05,2]
[347547275,1735912248620,-500.0,9.579e-05,2]
[347547276,1735912248630,-500.0,9.579e-05,2]
[347547277,1735912248639,-510.60069867,9.579e-05,2]
[347547278,1735912248649,-845.95,9.579e-05,2]
[347547279,1735912248658,-321.1193767,9.579e-05,2]
[347547280,1735912248669,-1196.86,9.579e-05,2]
[347547281,1735912248679,-500.0,9.579e-05,2]
[347547282,1735912248688,-653.68,9.579e-05,2]
[347547283,1735912248698,-500.0,9.579e-05,2]
[347547284,1735912248707,-500.0,9.579e-05,2]
[347547285,1735912248718,-500.0,9.579e-05,2]
[347547286,1735912248728,-500.0,9.579e-05,2]
[347547287,1735912248738,-496.75,9.58e-05,2]
[347547288,1735912248747,-5849080.87491998,9.58e-05,2]
[347547289,1735912249255,-1126807.72895,9.58e-05,2]
[347547290,1735912249266,-666.219778,9.58e-05,2]
[347547291,1735912249278,-1640.41786084,9.58e-05,2]
[347547292,1735912249296,-83197.945323,9.58e-05,2]
[347547293,1735912249307,-436513.76115669,9.58e-05,2]
[347547294,1735912249324,-14221.5236,9.58e-05,2]
[347547295,1735912250335,-468.092625,8.878e-05,2]
[347547296,1735912250352,-31.907375,8.878e-05,2]
[347547297,1735912250361,-500.0,8.878e-05,2]
[347547298,1735912250371,-321.2927819,8.878e-05,2]
[347547299,1735912250383,-178.7072181,8.878e-05,2]
[347547300,1735912250392,-500.0,8.977e-05,2]
[347547301,1735912250401,-500.0,9.152e-05,2]
[347547302,1735912250410,-532.53,9.152e-05,2]
[347547303,1735912250421,-404.24127466,9.152e-05,2]
[347547304,1735912250433,-95.75872534,9.152e-05,2]
[347547305,1735912250441,-418.3376786,9.253e-05,2]
[347547306,1735912250452,-81.6623214,9.253e-05,2]
[347547307,1735912250462,-480.37685548,9.253e-05,2]
[347547308,1735912250473,-61.63671551,9.253e-05,2]
[347547309,1735912250482,-500.0,9.426e-05,2]
[347547310,1735912250492,-159.99652609,9.553e-05,2]
[347547311,1735912250501,-151.99670214,9.553e-05,2]
[347547312,1735912250510,-236.05617515,9.579e-05,2]
[347547313,1735912250521,-392.49382485,9.579e-05,2]
[347547314,1735912250530,-22897.08027526,9.58e-05,2]
[347547315,1735912250542,-31064.64999992,9.58e-05,2]
[347547316,1735912250563,-500.0,9.426e-05,2]
[347547317,1735912250571,-2232.31868738,9.58e-05,2]
[347547318,1735912250595,-13580.98115534,9.58e-05,2]
[347547319,1735912250701,-6348.342,9.58e-05,2]
[347547320,1735912250712,-8174.16780708,9.58e-05,2]
[347547321,1735912250860,-596.0138533,8.977e-05,2]
[347547322,1735912250875,-74.0961467,8.977e-05,2]
[347547323,1735912250883,-249.02885334,9.251e-05,2]
[347547324,1735912250912,-421.08114666,9.251e-05,2]
[347547325,1735912250922,-345.66500004,9.58e-05,2]
[347547326,1735912256323,-0.21503575,8.978e-05,2]
[347547327,1735912256335,-499.78496425,8.978e-05,2]
[347547328,1735912256344,-281.48968575,8.979e-05,2]
[347547329,1735912256356,-218.51031425,8.979e-05,2]
[347547330,1735912256365,-662.31114575,9.525e-05,2]
[347547331,1735912257321,-500.0,8.977e-05,2]
[347547332,1735912257331,-99.83681126,8.978e-05,2]
[347547335,1735912357929,63501.81433163,0.000132,24]
[347547338,1735912504432,244.0,0.000132,30]
[347547343,1735912750736,194.39,6.521e-05,2]
[347547344,1735912791797,-244.0,0.00013663,30]
[347547345,1735912791830,-756.0,0.00013698,30]
[347547346,1735912793842,-244.0,0.00013698,30]
[347547347,1735912794087,-756.0,0.00013698,30]
[347547348,1735912794788,-244.0,0.00013698,30]
[347547349,1735912794815,-304.09186467,0.00013698,30]
[347547350,1735912804590,220.0,0.000132,30]
[347547351,1735912805426,220.0,0.00013663,30]
[347547352,1735912842144,-220.0,0.00014126,30]
[347547353,1735912842210,-220.0,0.00014589,30]
[347547354,1735913094623,6982.02483829,0.0001322,24]
[347547355,1735913103964,176.0,0.000132,30]
[347547356,1735913104369,176.0,0.00013663,30]
[347547357,1735913105202,176.0,0.00014126,30]
[347547358,1735913105401,32.0,0.00014589,30]
[347547359,1735913105429,144.0,0.00014589,30]
[347547364,1735913307481,50000.0,0.00013119,24]
[347547365,1735913325133,50000.0,0.0001312,24]
[347547366,1735913403716,156.0,0.0001312,30]
[347547367,1735913404368,156.0,0.00013642,30]
[347547368,1735913404979,156.0,0.00014165,30]
[347547369,1735913405286,156.0,0.00014687,30]
[347547382,1735913431999,-250.0,7.857e-05,2]
[347547383,1735913432010,-12.76248,7.962e-05,2]
[347547384,1735913432022,-312.69458048,7.962e-05,2]
[347547385,1735913432056,-587.31035547,7.962e-05,2]
[347547386,1735913432067,-587.23258405,7.962e-05,2]
[347547387,1735913432076,-1655.686106,7.962e-05,2]
[347547388,1735913432087,-250.0,8.068e-05,2]
[347547389,1735913432096,-291.5271,8.119e-05,2]
[347547390,1735913432106,-619.12,8.21e-05,2]
[347547391,1735913432115,-300.0,8.218e-05,2]
[347547392,1735913432124,-116.40955343,8.219e-05,2]
[347547393,1735913432140,-51.15044657,8.219e-05,2]
[347547394,1735913432149,-263.03883723,8.219e-05,2]
[347547395,1735913432206,-1319.98116277,8.219e-05,2]
[347547396,1735913432216,-250.0,8.219e-05,2]
[347547397,1735913432225,-1000.0,8.219e-05,2]
[347547398,1735913432234,-209.73,8.234e-05,2]
[347547399,1735913432245,-23900.0,8.337e-05,2]
[347547400,1735913432254,-168.14,8.523e-05,2]
[347547401,1735913432267,-150.0,8.605e-05,2]
[347547402,1735913432277,-150.0,8.605e-05,2]
[347547403,1735913432286,-150.0,8.605e-05,2]
[347547405,1735913432295,-150.0,8.605e-05,2]
[347547407,1735913432305,-150.0,8.701e-05,2]
[347547409,1735913432317,-150.0,8.765e-05,2]
[347547411,1735913432327,-2624.3272,8.778e-05,2]
[347547413,1735913432336,-150.0,8.797e-05,2]
[347547415,1735913432346,-150.0,8.797e-05,2]
[347547417,1735913432357,-2305.8,8.878e-05,2]
[347547418,1735913432366,-1284.19,8.878e-05,2]
[347547419,1735913432376,-965.97,8.878e-05,2]
[347547420,1735913432385,-500.0,8.878e-05,2]
[347547421,1735913432395,-1276.95,8.878e-05,2]
[347547422,1735913432403,-2571.53,8.878e-05,2]
[347547423,1735913432413,-2589.54,8.878e-05,2]
[347547424,1735913432422,-3789.6305106,8.878e-05,2]
[347547425,1735913432434,-429.6894894,8.878e-05,2]
[347547426,1735913432443,-3842.99,8.878e-05,2]
[347547427,1735913432453,-5070.29,8.878e-05,2]
[347547428,1735913432462,-500.0,8.878e-05,2]
[347547429,1735913432471,-965.57,8.878e-05,2]
[347547430,1735913432481,-1809.86,8.878e-05,2]
[347547431,1735913432490,-3930.61,8.878e-05,2]
[347547432,1735913432499,-590.66,8.878e-05,2]
[347547433,1735913432510,-1506.57,8.878e-05,2]
[347547434,1735913432519,-500.0,8.878e-05,2]
[347547435,1735913432528,-193.6830446,8.879e-05,2]
[347547436,1735913432557,-617.2552554,8.879e-05,2]
[347547437,1735913432567,-809.49,8.879e-05,2]
[347547438,1735913432576,-150.0,8.892e-05,2]
[347547439,1735913432585,-300.0,8.9e-05,3]
[347547440,1735913432595,-150.0,8.924e-05,2]
[347547441,1735913432604,-602.36,8.977e-05,2]
[347547442,1735913432613,-626.75,8.977e-05,2]
[347547443,1735913432623,-608.12,8.977e-05,2]
[347547444,1735913432632,-284.49641243,8.977e-05,2]
[347547445,1735913432729,50000.0,0.0001312,24]
[347547453,1735913437987,-746.77358757,8.977e-05,2]
[347547454,1735913437997,-500.0,8.977e-05,2]
[347547455,1735913438007,-705.29,8.977e-05,2]
[347547456,1735913438018,-854.79,8.977e-05,2]
[347547457,1735913438028,-500.0,8.977e-05,2]
[347547458,1735913438037,-828.11,8.977e-05,2]
[347547459,1735913438047,-717.9,8.977e-05,2]
[347547460,1735913438056,-539.22,8.977e-05,2]
[347547461,1735913438066,-768.58,8.977e-05,2]
[347547462,1735913438075,-1740.14,8.977e-05,2]
[347547463,1735913438085,-500.0,8.977e-05,2]
[347547464,1735913438094,-500.0,8.977e-05,2]
[347547465,1735913438104,-613.37,8.977e-05,2]
[347547466,1735913438114,-500.0,8.977e-05,2]
[347547467,1735913438125,-583.31,8.977e-05,2]
[347547469,1735913438134,-1050.53,8.977e-05,2]
[347547470,1735913438143,-500.0,8.977e-05,2]
[347547472,1735913438153,-500.0,8.977e-05,2]
[347547473,1735913438162,-811.4,8.977e-05,2]
[347547474,1735913438172,-638.42,8.977e-05,2]
[347547476,1735913438181,-951.47,8.977e-05,2]
[347547478,1735913438190,-500.0,8.977e-05,2]
[347547480,1735913438199,-500.0,8.977e-05,2]
[347547481,1735913438209,-500.0,8.977e-05,2]
[347547484,1735913438218,-1412.72,8.977e-05,2]
[347547486,1735913438227,-1257.66,8.977e-05,2]
[347547488,1735913438237,-500.0,8.977e-05,2]
[347547490,1735913438247,-500.0,8.977e-05,2]
[347547520,1735913438525,-500.0,8.977e-05,2]
[347547522,1735913438536,-1028.46,8.977e-05,2]
[347547524,1735913438546,-511.34,8.977e-05,2]
[347547526,1735913438555,-999.21,8.977e-05,2]
[347547528,1735913438564,-822.4,8.977e-05,2]
[347547530,1735913438574,-500.0,8.977e-05,2]
[347547532,1735913438584,-536.73,8.977e-05,2]
[347547534,1735913438593,-544.45,8.977e-05,2]
[347547536,1735913438602,-567.06,8.977e-05,2]
[347547538,1735913438611,-500.0,8.977e-05,2]
[347547540,1735913438621,-500.0,8.977e-05,2]
[347547542,1735913438630,-553.32,8.977e-05,2]
[347547544,1735913438640,-500.0,8.977e-05,2]
[347547546,1735913438649,-519.82,8.977e-05,2]
[347547548,1735913438659,-500.0,8.977e-05,2]
[347547550,1735913438668,-500.0,8.977e-05,2]
[347547552,1735913438678,-765.62,8.977e-05,2]
[347547554,1735913438687,-500.0,8.977e-05,2]
[347547556,1735913438697,-623.53,8.977e-05,2]
[347547558,1735913438706,-655.32,8.977e-05,2]
[347547560,1735913438716,-1043.08,8.977e-05,2]
[347547562,1735913438725,-2317.13,8.977e-05,2]
[347547564,1735913438735,-1078.56,8.977e-05,2]
[347547566,1735913438744,-967.56,8.977e-05,2]
[347547568,1735913438753,-1942.46,8.977e-05,2]
[347547570,1735913438763,-1071.25,8.977e-05,2]
[347547572,1735913438774,-500.0,8.977e-05,2]
[347547574,1735913438783,-500.0,8.977e-05,2]
[347547576,1735913438793,-4630.03,8.977e-05,2]
[347547578,1735913438802,-514.03,8.977e-05,2]
[347547580,1735913438813,-843.34,8.977e-05,2]
[347547582,1735913438822,-794.16,8.977e-05,2]
[347547584,1735913438831,-500.0,8.977e-05,2]
[347547586,1735913438841,-500.0,8.977e-05,2]
[347547587,1735913438850,-500.0,8.977e-05,2]
[347547588,1735913438859,-816.53,8.977e-05,2]
[347547589,1735913438868,-766.16,8.977e-05,2]
[347547590,1735913438877,-980.39,8.977e-05,2]
[347547591,1735913438887,-500.0,8.977e-05,2]
[347547592,1735913438896,-663.21,8.977e-05,2]
[347547593,1735913438905,-663.36,8.977e-05,2]
[347547594,1735913438915,-1985.94,8.977e-05,2]
[347547595,1735913438924,-1430.45,8.977e-05,2]
[347547596,1735913438934,-726.86,8.977e-05,2]
[347547597,1735913438944,-500.0,8.977e-05,2]
[347547598,1735913438954,-882.78,8.977e-05,2]
[347547599,1735913438964,-1568.97,8.977e-05,2]
[347547600,1735913438973,-500.0,8.977e-05,2]
[347547601,1735913438983,-2876.97,8.977e-05,2]
[347547602,1735913438992,-1847.56,8.977e-05,2]
[347547603,1735913439001,-1434.31,8.977e-05,2]
[347547604,1735913439011,-1462.33,8.977e-05,2]
[347547605,1735913439022,-1166.74,8.977e-05,2]
[347547606,1735913439031,-2866.12,8.977e-05,2]
[347547607,1735913439040,-2403.46,8.977e-05,2]
[347547608,1735913439049,-500.0,8.977e-05,2]
[347547609,1735913439058,-598.26,8.977e-05,2]
[347547610,1735913439067,-500.0,8.977e-05,2]
[347547611,1735913439077,-500.0,8.977e-05,2]
[347547612,1735913439086,-704.51,8.977e-05,2]
[347547613,1735913439095,-3527.39,8.977e-05,2]
[347547614,1735913439104,-1048.69,8.977e-05,2]
[347547615,1735913439113,-862.27,8.977e-05,2]
[347547616,1735913439124,-544.24,8.977e-05,2]
[347547617,1735913439133,-788.51,8.977e-05,2]
[347547618,1735913439142,-500.0,8.977e-05,2]
[347547619,1735913439152,-500.0,8.977e-05,2]
[347547620,1735913439161,-671.55,8.977e-05,2]
[347547621,1735913439170,-1628.97,8.977e-05,2]
[347547622,1735913439179,-1628.97,8.977e-05,2]
[347547623,1735913439188,-875.5,8.977e-05,2]
[347547624,1735913439197,-418.39132877,8.977e-05,2]
[347547628,1735913439971,-208.08867123,8.977e-05,2]
[347547629,1735913439981,-500.0,8.977e-05,2]
[347547630,1735913439990,-500.0,8.977e-05,2]
[347547631,1735913439999,-1623.4,8.977e-05,2]
[347547632,1735913440009,-500.0,8.977e-05,2]
[347547633,1735913440019,-2958.01,8.977e-05,2]
[347547634,1735913440028,-500.0,8.977e-05,2]
[347547635,1735913440037,-923.94,8.977e-05,2]
[347547636,1735913440049,-3402.3,8.977e-05,2]
[347547637,1735913440058,-500.0,8.977e-05,2]
[347547638,1735913440066,-569.95,8.978e-05,2]
[347547639,1735913440076,-500.0,8.978e-05,2]
[347547640,1735913440085,-500.0,8.978e-05,2]
[347547641,1735913440095,-500.0,8.978e-05,2]
[347547642,1735913440104,-500.0,8.978e-05,2]
[347547643,1735913440114,-500.0,8.978e-05,2]
[347547644,1735913440124,-551.43098,8.978e-05,2]
[347547645,1735913440134,-150.98357983,8.978e-05,2]
[347547646,1735913440145,-500.0,8.978e-05,2]
[347547647,1735913440154,-500.0,8.978e-05,2]
[347547648,1735913440163,-500.0,8.978e-05,2]
[347547649,1735913440173,-500.0,8.978e-05,2]
[347547650,1735913440182,-558.32,8.978e-05,2]
[347547651,1735913440191,-500.0,8.978e-05,2]
[347547652,1735913440200,-500.0,8.978e-05,2]
[347547653,1735913440209,-500.0,8.978e-05,2]
[347547654,1735913440219,-500.0,8.978e-05,2]
[347547655,1735913440228,-566.75,8.978e-05,2]
[347547656,1735913440237,-500.0,8.978e-05,2]
[347547657,1735913440247,-500.0,8.978e-05,2]
[347547658,1735913440256,-500.0,8.978e-05,2]
[347547659,1735913440266,-500.0,8.978e-05,2]
[347547660,1735913440276,-500.0,8.978e-05,2]
[347547661,1735913440286,-500.0,8.978e-05,2]
[347547663,1735913440295,-631.99722301,8.978e-05,2]
[347547669,1735913440355,-295.73277699,8.978e-05,2]
[347547671,1735913440365,-500.0,8.978e-05,2]
[347547673,1735913440375,-500.0,8.978e-05,2]
[347547675,1735913440384,-500.0,8.978e-05,2]
[347547677,1735913440393,-500.0,8.978e-05,2]
[347547679,1735913440402,-782.75,8.978e-05,2]
[347547680,1735913440413,-527.90947784,8.978e-05,2]
[347547682,1735913440422,-708.77,8.978e-05,2]
[347547684,1735913440431,-500.0,8.978e-05,2]
[347547686,1735913440442,-560.95031517,8.978e-05,2]
[347547688,1735913440451,-552.4,8.978e-05,2]
[347547690,1735913440460,-622.14,8.978e-05,2]
[347547692,1735913440469,-500.0,8.978e-05,2]
[347547694,1735913440478,-30.92499993,8.978e-05,2]
[347547696,1735913440490,-469.07500007,8.978e-05,2]
[347547698,1735913440499,-500.0,8.978e-05,2]
[347547700,1735913440508,-500.0,8.978e-05,2]
[347547702,1735913440517,-500.0,8.978e-05,2]
[347547704,1735913440527,-500.0,8.978e-05,2]
[347547706,1735913440536,-500.0,8.978e-05,2]
[347547708,1735913440545,-500.0,8.978e-05,2]
[347547710,1735913440554,-500.0,8.978e-05,2]
[347547712,1735913440563,-500.0,8.978e-05,2]
[347547714,1735913440572,-461.31746517,8.978e-05,2]
[347547716,1735913440581,-500.0,8.978e-05,2]
[347547718,1735913440591,-500.0,8.978e-05,2]
[347547720,1735913440600,-440.24106151,8.978e-05,2]
[347547722,1735913440610,-500.0,8.978e-05,2]
[347547724,1735913440620,-500.0,8.978e-05,2]
[347547726,1735913440629,-500.0,8.978e-05,2]
[347547728,1735913440638,-500.0,8.978e-05,2]
[347547730,1735913440647,-500.0,8.978e-05,2]
[347547732,1735913440656,-500.0,8.978e-05,2]
[347547734,1735913440666,-500.0,8.978e-05,2]
[347547736,1735913440675,-500.0,8.978e-05,2]
[347547738,1735913440684,-651.38,8.978e-05,2]
[347547739,1735913440693,-500.0,8.978e-05,2]
[347547741,1735913440703,-500.0,8.978e-05,2]
[347547743,1735913440712,-500.0,8.978e-05,2]
[347547745,1735913440721,-500.0,8.978e-05,2]
[347547748,1735913440730,-736.99,8.978e-05,2]
[347547750,1735913440740,-500.0,8.978e-05,2]
[347547752,1735913440750,-500.0,8.978e-05,2]
[347547753,1735913440759,-500.0,8.978e-05,2]
[347547756,1735913440770,-207.13539465,8.978e-05,2]
[347547758,1735913440780,-664.77,8.978e-05,2]
[347547760,1735913440790,-500.0,8.978e-05,2]
[347547762,1735913440800,-160.84,8.978e-05,2]
[347547763,1735913440809,-500.0,8.978e-05,2]
[347547765,1735913440818,-500.0,8.978e-05,2]
[347547767,1735913440827,-500.0,8.978e-05,2]
[347547769,1735913440837,-500.0,8.978e-05,2]
[347547771,1735913440847,-500.0,8.978e-05,2]
[347547773,1735913440856,-500.0,8.978e-05,2]
[347547775,1735913440866,-571.47,8.978e-05,2]
[347547777,1735913440876,-500.0,8.978e-05,2]
[347547779,1735913440886,-500.0,8.978e-05,2]
[347547781,1735913440895,-1420.12,8.978e-05,2]
[347547783,1735913440906,-500.0,8.978e-05,2]
[347547785,1735913440915,-526.38,8.978e-05,2]
[347547787,1735913440925,-500.0,8.978e-05,2]
[347547789,1735913440934,-500.0,8.978e-05,2]
[347547791,1735913440943,-500.0,8.978e-05,2]
[347547793,1735913440952,-500.0,8.978e-05,2]
[347547795,1735913440961,-500.0,8.978e-05,2]
[347547797,1735913440971,-237.22542824,8.978e-05,2]
[347547833,1735913441422,-324.90457176,8.978e-05,2]
[347547835,1735913441431,-546.38,8.978e-05,2]
[347547837,1735913441441,-681.97,8.978e-05,2]
[347547839,1735913441450,-500.0,8.978e-05,2]
[347547841,1735913441459,-500.0,8.978e-05,2]
[347547843,1735913441468,-364.84335489,8.978e-05,2]
[347547845,1735913441479,-1025.51664511,8.978e-05,2]
[347547847,1735913441489,-540.37,8.978e-05,2]
[347547849,1735913441498,-504.44,8.978e-05,2]
[347547851,1735913441508,-500.0,8.978e-05,2]
[347547853,1735913441518,-770.82,8.978e-05,2]
[347547855,1735913441532,-500.0,8.978e-05,2]
[347547857,1735913441540,-999.6,8.978e-05,2]
[347547859,1735913441550,-500.0,8.978e-05,2]
[347547861,1735913441559,-500.0,8.978e-05,2]
[347547863,1735913441568,-500.0,8.978e-05,2]
[347547865,1735913441578,-500.0,8.978e-05,2]
[347547867,1735913441587,-500.0,8.978e-05,2]
[347547869,1735913441596,-500.0,8.978e-05,2]
[347547871,1735913441605,-818.72,8.978e-05,2]
[347547873,1735913441615,-500.0,8.978e-05,2]
[347547875,1735913441625,-288.85396715,8.978e-05,2]
[347547877,1735913441635,-500.0,8.978e-05,2]
[347547879,1735913441644,-1476.13,8.978e-05,2]
[347547881,1735913441653,-500.0,8.978e-05,2]
[347547883,1735913441662,-550.53,8.978e-05,2]
[347547885,1735913441671,-500.0,8.978e-05,2]
[347547887,1735913441681,-566.14,8.978e-05,2]
[347547889,1735913441690,-438.69617253,8.978e-05,2]
[347547891,1735913441700,-500.0,8.978e-05,2]
[347547893,1735913441709,-500.0,8.978e-05,2]
[347547895,1735913441719,-3834.5,8.978e-05,2]
[347547897,1735913441728,-500.0,8.978e-05,2]
[347547899,1735913441737,-500.0,8.978e-05,2]
[347547901,1735913441747,-849.66,8.978e-05,2]
[347547903,1735913441756,-500.0,8.978e-05,2]
[347547905,1735913441765,-358.83393478,8.978e-05,2]
[347547907,1735913441779,-500.0,8.978e-05,2]
[347547909,1735913441789,-500.0,8.978e-05,2]
[347547911,1735913441798,-701.93,8.978e-05,2]
[347547913,1735913441807,-580.29,8.978e-05,2]
[347547915,1735913441816,-500.0,8.978e-05,2]
[347547917,1735913441825,-500.0,8.978e-05,2]
[347547919,1735913441835,-500.0,8.978e-05,2]
[347547921,1735913441844,-500.0,8.978e-05,2]
[347547923,1735913441853,-500.0,8.978e-05,2]
[347547925,1735913441863,-3020.2,8.978e-05,2]
[347547927,1735913441872,-500.0,8.978e-05,2]
[347547929,1735913441881,-744.66,8.978e-05,2]
[347547931,1735913441890,-260.90932949,8.978e-05,2]
[347547933,1735913441900,-615.34,8.978e-05,2]
[347547935,1735913441909,-572.76,8.978e-05,2]
[347547937,1735913441919,-500.0,8.978e-05,2]
[347547939,1735913441928,-500.0,8.978e-05,2]
[347547941,1735913441937,-500.0,8.978e-05,2]
[347547943,1735913441947,-541.11995733,8.978e-05,2]
[347547945,1735913441956,-500.0,8.978e-05,2]
[347547947,1735913441966,-562.66,8.978e-05,2]
[347547949,1735913441975,-639.62,8.978e-05,2]
[347547951,1735913441984,-633.45,8.978e-05,2]
[347547953,1735913441993,-939.85,8.978e-05,2]
[347547955,1735913442002,-500.0,8.978e-05,2]
[347547957,1735913442011,-500.0,8.978e-05,2]
[347547959,1735913442021,-569.06,8.978e-05,2]
[347547961,1735913442030,-500.0,8.978e-05,2]
[347547963,1735913442039,-500.0,8.978e-05,2]
[347547965,1735913442048,-690.4,8.978e-05,2]
[347547967,1735913442057,-500.0,8.978e-05,2]
[347547969,1735913442066,-500.0,8.978e-05,2]
[347547971,1735913442075,-500.0,8.978e-05,2]